bitfinex/quotes_ETHUSD_20250725
["timestamp","ask_amount","ask_price","bid_price","bid_amount"]
[1753437507815,0.0091066,3723.7,3723.6,7.45090757]
[1753437508016,0.0091066,3723.7,3723.6,2.70990757]
[1753437508217,0.0091066,3723.7,3723.6,5.11705925]
[1753437508429,1e-08,3723.7,3723.6,15.75944268]
[1753437508630,2.68656565,3725.0,3724.4,2.68496023]
[1753437508843,0.002,3725.0,3724.5,4.741]
[1753437509150,0.9007,3725.0,3724.6,4.741]
[1753437509643,0.9007,3725.0,3724.7,2.68477411]
[1753437509942,0.9007,3725.0,3724.6,4.741]
[1753437510311,0.9007,3725.0,3724.6,7.42584436]
[1753437510510,0.9007,3725.0,3724.6,4.741]
[1753437511549,0.002,3725.0,3724.6,4.741]
[1753437511916,3.61883645,3725.0,3724.7,4.739]
[1753437512126,2.72013645,3725.0,3724.7,4.739]
[1753437512347,2.6847079,3724.8,3724.2,0.9162]
[1753437512650,2.68493633,3724.5,3723.8,2.68536883]
[1753437512850,2.68493633,3724.5,3723.9,4.739]
[1753437513057,2.68500253,3724.4,3723.9,4.739]
[1753437513461,2.68507789,3724.3,3724.0,4.739]
[1753437513637,2.71871083,3724.2,3724.1,4.98054503]
[1753437513822,2.68514658,3724.2,3724.1,4.98054503]
[1753437514161,2.68514658,3724.2,3724.1,4.97954503]
[1753437514377,2.68514658,3724.2,3724.1,4.738]
[1753437514851,0.8987,3724.5,3724.1,4.738]
[1753437515255,3.5836704,3724.5,3724.1,4.738]
[1753437515657,3.0,3724.9,3724.2,1.62378753]
[1753437515838,3.002,3725.0,3724.3,0.24158753]
[1753437516023,2.68661665,3725.0,3724.4,0.24158753]
[1753437516219,2.68661665,3725.0,3724.5,0.24179422]
[1753437516520,3.0,3724.9,3724.6,0.24179422]
[1753437516872,0.002,3725.0,3724.5,4.737]
[1753437517063,3.0,3724.7,3724.4,4.737]
[1753437517354,3.0,3724.7,3724.5,0.24177889]
[1753437517660,0.002,3725.0,3724.4,4.737]
[1753437517853,2.68657317,3725.0,3724.5,1.3078]
[1753437518053,0.002,3725.0,3724.6,1.3078]
[1753437518466,0.002,3725.0,3724.9,0.1344]
[1753437518670,0.002,3725.0,3724.9,4.8704]
[1753437520236,0.002,3725.0,3724.9,0.1344]
[1753437520442,0.002,3725.0,3724.9,4.8694]
[1753437520637,0.002,3725.0,3724.9,8.86183582]
[1753437520838,0.002,3725.0,3724.9,4.8694]
[1753437521442,3.55056375,3725.0,3724.9,4.8694]
[1753437522035,1.3284,3725.0,3723.7,0.3306]
[1753437522272,2.68497626,3724.5,3724.4,0.1344]
[1753437522480,3.54897626,3724.5,3724.4,4.8684]
[1753437522943,3.54897626,3724.5,3723.2,6.447]
[1753437522944,4.3264,3724.5,3723.3,1.3078]
[1753437523140,0.70448014,3724.4,3723.5,2.68564522]
[1753437523372,5.68514043,3724.2,3724.1,0.1344]
[1753437524178,3.0,3724.2,3724.1,0.1344]
[1753437525261,2.68493115,3724.5,3724.1,1.4422]
[1753437525448,2.68493115,3724.5,3724.4,0.1344]
[1753437525671,1.5761,3724.9,3724.4,4.8664]
[1753437525672,5.68477998,3724.7,3724.4,4.8664]
[1753437526085,1.4417,3724.9,3724.4,0.1344]
[1753437526291,4.4417,3724.9,3724.5,4.732]
[1753437526485,3.0,3724.9,3724.6,0.1344]
[1753437526693,0.002,3725.0,3724.6,0.1344]
[1753437526893,3.002,3725.0,3724.6,0.1344]
[1753437527315,0.002,3725.0,3724.7,1.3078]
[1753437527467,0.002,3725.0,3724.9,0.1344]
[1753437527671,0.002,3725.0,3724.9,4.8654]
[1753437527923,0.002,3725.0,3724.9,10.01210666]
[1753437528071,0.002,3725.0,3724.9,10.20830666]
[1753437528585,0.002,3725.0,3724.6,2.68478734]
[1753437528903,0.002,3725.0,3724.8,2.6847026]
[1753437529065,0.002,3725.0,3724.7,4.731]
[1753437529267,0.002,3725.0,3724.9,2.68463582]
[1753437529771,0.002,3725.0,3724.9,3.99243582]
[1753437530171,0.002,3725.0,3724.9,4.34108986]
[1753437530415,0.002,3725.0,3724.9,4.67168986]
[1753437531112,0.002,3725.0,3724.9,4.69853621]
[1753437531967,0.002,3725.0,3724.9,4.94007099]
[1753437532478,0.002,3725.0,3724.9,4.69853621]
[1753437532878,0.002,3725.0,3724.9,4.93993884]
[1753437533083,0.002,3725.0,3724.9,9.66793884]
[1753437533289,0.002,3725.0,3724.9,9.64109249]
[1753437533612,1e-08,3725.8,3725.6,3.49413141]
[1753437533788,1e-08,3725.8,3725.7,3.54329681]
[1753437533990,1e-08,3725.8,3725.7,4.85109681]
[1753437534192,1e-08,3725.8,3725.7,9.57809681]
[1753437536009,1e-08,3725.8,3725.7,4.85109681]
[1753437536183,1e-08,3725.8,3725.7,9.8639374]
[1753437536388,1e-08,3725.8,3725.7,9.83709681]
[1753437536603,1e-08,3725.8,3725.7,10.38709681]
[1753437537407,1e-08,3725.8,3725.7,17.68709681]
[1753437537609,1e-08,3725.8,3725.7,18.07316629]
[1753437537989,1e-08,3725.8,3725.7,18.20756629]
[1753437538819,1e-08,3725.8,3725.7,13.90756629]
[1753437539023,1e-08,3725.8,3725.7,13.52149681]
[1753437539226,4.20670227,3728.1,3727.0,0.26]
[1753437539227,3.54664597,3727.7,3727.0,0.26]
[1753437539453,3.54664597,3727.7,3726.3,0.55]
[1753437539454,0.864,3727.7,3727.1,4.722]
[1753437539585,2.3883,3728.1,3727.6,0.1344]
[1753437539791,4.0088058,3728.0,3727.7,4.722]
[1753437540117,1.3264,3727.9,3727.7,4.722]
[1753437540319,4.20664976,3728.1,3728.0,0.1344]
[1753437540651,0.4624,3727.8,3726.7,7.7518]
[1753437540847,0.864,3727.7,3726.8,4.96091114]
[1753437541004,0.13620466,3728.4,3726.8,4.96091114]
[1753437541005,1.5185,3728.6,3728.4,2.68209603]
[1753437541204,2.3825,3728.6,3728.5,4.72]
[1753437541458,2.8449,3728.6,3728.5,4.72]
[1753437541613,5.52687178,3728.6,3728.5,4.72]
[1753437542114,2.8449,3728.6,3728.5,4.72]
[1753437542548,2.3825,3728.6,3728.5,4.72]
[1753437542839,2.3825,3728.6,3727.4,0.26]
[1753437542840,0.864,3729.1,3728.3,0.26]
[1753437543007,2.68188743,3728.8,3728.4,4.719]
[1753437543212,0.864,3728.7,3728.4,4.719]
[1753437543432,2.68213771,3728.4,3727.7,2.68256472]
[1753437543608,0.864,3728.3,3727.8,7.40148859]
[1753437543821,0.864,3728.2,3727.8,4.719]
[1753437544035,2.2962,3729.0,3727.9,1.33462475]
[1753437544209,2.68196141,3728.7,3727.9,3.9902234]
[1753437544412,2.68196141,3728.7,3728.0,2.68240123]
[1753437544742,0.864,3728.9,3728.2,2.68225885]
[1753437544921,0.864,3728.9,3728.1,4.977]
[1753437545111,2.3187,3729.1,3728.6,2.68192646]
[1753437545308,3.14012676,3729.9,3728.1,5.00382331]
[1753437545309,0.864,3729.6,3728.8,2.68182793]
[1753437545645,0.864,3729.6,3728.9,4.717]
[1753437545646,1.4547,3729.4,3728.9,4.717]
[1753437545846,0.17363972,3729.9,3729.0,4.717]
[1753437546149,1.00412676,3729.9,3729.4,2.68134277]
[1753437546442,1.00412676,3729.9,3729.5,5.601]
[1753437546443,0.14012676,3729.9,3729.5,5.601]
[1753437546606,0.14012676,3729.9,3729.8,2.6811089]
[1753437546808,0.14012676,3729.9,3729.8,7.3971089]
[1753437547040,0.14012676,3729.9,3729.8,4.2673089]
[1753437547247,0.14012676,3729.9,3729.8,7.6561089]
[1753437547407,0.14012676,3729.9,3729.8,7.3961089]
[1753437547607,0.14012676,3729.9,3729.8,7.8373089]
[1753437547914,0.14012676,3729.9,3729.8,6.0412]
[1753437548214,0.14012676,3729.9,3729.8,6.95054371]
[1753437548633,0.5,3730.0,3729.8,5.62334371]
[1753437548832,0.5,3730.0,3729.9,6.0402]
[1753437549244,0.5,3730.0,3729.9,4.714]
[1753437549725,1.329,3730.0,3729.9,4.713]
[1753437549922,1.329,3730.0,3729.3,0.26]
[1753437550246,2.25511296,3729.9,3729.4,4.712]
[1753437550449,0.5,3730.0,3729.5,6.06501324]
[1753437550650,0.5,3730.0,3729.6,4.712]
[1753437550951,1.2769,3729.9,3729.0,0.26]
[1753437551147,0.829,3729.8,3729.1,4.711]
[1753437551351,0.829,3729.8,3728.7,1.3262]
[1753437551352,0.03351475,3729.7,3728.7,0.20441342]
[1753437551648,3.1344,3729.5,3728.9,0.1344]
[1753437551859,3.1344,3729.5,3728.8,4.711]
[1753437551860,1.47371745,3729.4,3728.8,4.711]
[1753437552019,2.75061745,3729.4,3728.8,4.8454]
[1753437552217,1.2769,3729.3,3728.8,4.8454]
[1753437552426,4.2769,3729.3,3728.8,0.1344]
[1753437552651,1.5261,3729.0,3727.4,6.439]
[1753437552843,1.5261,3728.7,3726.9,1.3262]
[1753437553053,0.1344,3728.5,3727.9,0.1344]
[1753437553215,0.829,3728.6,3728.3,0.1344]
[1753437553417,0.829,3728.5,3728.3,0.1344]
[1753437553726,0.1344,3728.9,3728.3,0.1344]
[1753437553727,0.829,3728.9,3728.3,0.1344]
[1753437553929,0.829,3728.9,3728.4,4.71]
[1753437554262,0.4479,3729.9,3728.8,0.1344]
[1753437554414,1.4441,3729.5,3728.8,0.1344]
[1753437554622,1.4441,3729.5,3728.5,1.35302043]
[1753437554623,1.4441,3729.5,3729.1,0.1344]
[1753437554814,0.4479,3729.9,3728.9,4.709]
[1753437554815,0.002,3729.4,3729.2,0.26]
[1753437555014,0.002,3729.4,3729.3,1.3262]
[1753437555339,0.002,3729.4,3729.3,1.4606]
[1753437555537,0.002,3729.4,3729.3,0.1344]
[1753437555915,0.002,3729.4,3729.3,0.5756]
[1753437556238,0.002,3729.4,3729.3,0.1344]
[1753437556440,0.002,3729.4,3729.3,4.8424]
[1753437556646,1.4699,3729.3,3728.2,6.439]
[1753437556840,1.4699,3729.3,3729.1,0.1344]
[1753437557360,1.2769,3729.2,3729.1,0.1344]
[1753437557554,1.31041925,3729.2,3728.4,4.707]
[1753437557715,3.44615117,3729.2,3728.7,0.1344]
[1753437557920,1.2769,3729.1,3728.7,0.1344]
[1753437558346,1.2769,3729.0,3728.7,0.1344]
[1753437558558,0.03352195,3728.9,3728.7,0.1344]
[1753437558854,1.4515,3728.7,3728.2,0.1344]
[1753437559068,1.73778,3728.7,3728.2,0.1344]
[1753437559214,0.829,3728.6,3728.0,4.706]
[1753437559414,0.829,3728.6,3727.7,1.3262]
[1753437559649,0.829,3728.6,3728.5,0.1344]
[1753437560634,1.4515,3728.7,3728.5,0.1344]
[1753437562664,2.2805,3728.7,3728.5,0.1344]
[1753437562870,0.829,3728.6,3728.5,0.1344]
[1753437563047,1.4515,3728.7,3728.5,0.1344]
[1753437563766,0.829,3728.6,3727.4,0.4412]
[1753437563971,0.829,3728.6,3728.4,0.1344]
[1753437564186,1.4515,3728.7,3728.4,0.1344]
[1753437564187,0.829,3728.5,3728.4,0.1344]
[1753437564752,1.91009,3728.7,3728.4,0.1344]
[1753437564968,1.4515,3728.7,3728.4,0.1344]
[1753437565367,0.829,3728.6,3728.4,0.1344]
[1753437565976,1.4515,3728.7,3728.4,0.1344]
[1753437566682,2.2805,3728.7,3728.4,0.1344]
[1753437568905,1.4515,3728.7,3728.2,4.7]
[1753437569060,1.4515,3728.7,3728.6,0.1344]
[1753437569576,5.3201,3729.1,3728.6,0.1344]
[1753437569767,0.829,3728.9,3728.8,0.1344]
[1753437569969,1.1058,3728.9,3728.8,0.1344]
[1753437570174,1.1058,3728.9,3727.6,1.3262]
[1753437570175,1.13932195,3728.9,3728.5,0.1344]
[1753437570496,1.4634,3728.7,3727.3,0.885]
[1753437570652,1.31042464,3728.6,3728.2,0.1344]
[1753437571058,0.03352464,3728.6,3728.2,0.1344]
[1753437571273,0.829,3728.5,3728.2,0.1344]
[1753437571468,1.5978,3728.7,3728.2,0.1344]
[1753437571800,2.2924,3728.7,3728.4,0.1344]
[1753437571999,0.1344,3729.1,3728.4,0.1344]
[1753437572171,0.829,3729.0,3728.6,0.1344]
[1753437572375,2.4001,3729.2,3728.2,0.02682259]
[1753437572564,2.2657,3729.2,3728.9,0.1344]
[1753437572765,0.829,3729.1,3728.9,0.1344]
[1753437575270,4.5711,3729.2,3728.6,0.1344]
[1753437575606,0.829,3729.0,3728.6,0.1344]
[1753437575824,0.829,3728.9,3728.6,0.1344]
[1753437577190,0.8489,3728.9,3728.6,0.1344]
[1753437578701,0.8489,3728.8,3728.6,0.1344]
[1753437579122,2.42,3729.2,3728.6,0.1344]
[1753437579273,2.2856,3729.2,3728.6,0.1344]
[1753437579599,1.4367,3729.2,3728.6,0.8007]
[1753437579804,0.002,3729.4,3729.1,0.1344]
[1753437580182,0.002,3729.4,3729.3,0.1344]
[1753437580594,0.002,3729.4,3729.3,1.3717]
[1753437580997,0.002,3729.4,3729.3,0.1344]
[1753437581197,0.8509,3729.4,3729.3,0.1344]
[1753437581610,0.002,3729.4,3729.3,0.1344]
[1753437582640,1.34081745,3729.4,3727.3,0.2591]
[1753437582775,1.3053,3729.3,3727.4,1.04256471]
[1753437582977,1.4192,3729.1,3727.5,0.24186471]
[1753437583223,4.33882105,3729.0,3727.6,0.24186471]
[1753437583379,4.33882105,3729.0,3727.7,0.24186471]
[1753437583380,3.0,3728.8,3727.7,0.24186471]
[1753437583584,1.401,3728.6,3727.8,0.24186471]
[1753437583781,1.401,3728.6,3726.9,0.2591]
[1753437583782,4.33882554,3728.5,3727.9,0.24186471]
[1753437584098,4.33882554,3728.5,3726.9,1.0598]
[1753437584099,4.3053,3728.4,3728.0,0.24186471]
[1753437584301,0.54185782,3728.3,3728.1,0.24186471]
[1753437584527,1.401,3728.6,3728.2,0.24186471]
[1753437584691,1.401,3728.6,3728.3,0.24186471]
[1753437584893,4.3846,3729.1,3728.4,0.24186471]
[1753437585189,2.2335,3729.1,3728.5,0.24202193]
[1753437585388,2.2335,3729.1,3728.6,0.24202193]
[1753437585726,0.8489,3729.0,3728.7,0.24202193]
[1753437585911,0.8489,3729.0,3728.8,0.24202193]
[1753437586084,0.8489,3729.0,3728.9,0.24202193]
[1753437586495,1.3846,3729.1,3728.9,0.24202193]
[1753437586818,0.002,3729.4,3729.0,0.24202193]
[1753437587026,0.8509,3729.4,3729.1,0.24202193]
[1753437587206,0.002,3729.4,3729.2,0.24202193]
[1753437587412,0.002,3729.4,3729.3,0.24202193]
[1753437587720,1.48036745,3729.4,3729.3,0.24202193]
[1753437587911,1.48036745,3729.4,3728.4,4.686]
[1753437588095,0.17506745,3729.4,3728.5,0.24242372]
[1753437588301,1.3053,3729.3,3728.6,0.24242372]
[1753437588514,1.3053,3729.3,3728.7,0.24242372]
[1753437588800,0.44803665,3729.2,3728.8,0.24242372]
[1753437589113,0.8489,3729.1,3728.9,0.24242372]
[1753437589425,0.8489,3729.1,3728.2,0.4366]
[1753437589426,0.002,3729.4,3729.0,0.24242372]
[1753437589628,0.4564,3729.3,3729.1,0.24242372]
[1753437589813,3.0,3729.1,3727.3,0.2591]
[1753437590018,1.33882105,3729.0,3727.4,5.72819931]
[1753437590213,1.488,3729.2,3727.4,5.72819931]
[1753437590214,1.488,3729.2,3727.5,1.50662694]
[1753437590420,1.488,3729.2,3727.7,0.2591]
[1753437590589,1.488,3729.2,3727.8,0.02682547]
[1753437590794,0.002,3729.4,3727.9,0.02682475]
[1753437590994,0.002,3729.4,3728.0,0.2591]
[1753437591197,0.002,3729.4,3728.2,0.55]
[1753437591429,0.002,3729.4,3728.1,1.4964]
[1753437591430,0.002,3729.4,3728.3,11.61265]
[1753437591698,0.002,3729.4,3728.3,6.92865]
[1753437591997,0.002,3729.4,3728.4,5.9203]
[1753437592417,0.002,3729.4,3728.5,1.2373]
[1753437592727,0.002,3729.4,3729.3,0.1344]
[1753437594109,0.002,3729.4,3729.2,0.1344]
[1753437594833,0.8489,3729.3,3729.2,0.1344]
[1753437595136,0.03551745,3729.4,3729.2,0.1344]
[1753437595441,0.03551745,3729.4,3724.2,4.60738875]
[1753437595442,2.6542,3729.3,3728.9,0.1344]
[1753437595599,2.08436,3729.3,3728.9,0.1344]
[1753437595802,0.8489,3729.2,3728.9,0.1344]
[1753437596217,1.62796,3729.3,3728.9,0.1344]
[1753437596637,2.47686,3729.3,3728.9,0.1344]
[1753437598039,4.3053,3729.2,3728.9,0.1344]
[1753437598210,0.69667993,3729.1,3728.9,0.1344]
[1753437598531,1.3489,3729.3,3728.9,0.1344]
[1753437599594,0.002,3729.4,3728.9,0.1344]
[1753437599796,0.002,3729.4,3729.0,1.2373]
[1753437600029,0.002,3729.4,3729.3,0.1344]
[1753437600440,0.002,3729.4,3729.3,1.3717]
[1753437601853,0.002,3729.4,3729.3,0.1344]
[1753437601854,0.8509,3729.4,3729.3,0.1344]
[1753437602053,1.73803,3729.4,3728.5,4.675]
[1753437602251,0.03351835,3729.3,3728.5,4.675]
[1753437602556,0.8489,3729.3,3729.0,0.1344]
[1753437602724,0.43273,3729.4,3729.0,0.1344]
[1753437602916,0.002,3729.4,3729.2,0.1344]
[1753437603116,0.002,3729.4,3729.2,1.3717]
[1753437603317,0.002,3729.4,3729.3,0.8007]
[1753437603549,0.002,3729.4,3729.3,1.2373]
[1753437604048,0.002,3729.4,3729.2,0.1344]
[1753437604347,0.8489,3729.3,3729.2,0.1344]
[1753437604552,0.8489,3729.3,3729.0,0.1344]
[1753437604553,1.3053,3729.3,3729.0,0.1344]
[1753437604859,2.68161218,3729.1,3729.0,0.1344]
[1753437605359,0.8489,3729.2,3729.0,0.1344]
[1753437605360,0.03351925,3729.2,3729.0,0.1344]
[1753437605526,0.002,3729.4,3728.6,0.02681971]
[1753437605861,2.68344899,3729.4,3729.1,1.2373]
[1753437606031,0.002,3729.4,3729.1,0.4366]
[1753437606369,0.002,3729.4,3728.9,4.672]
[1753437606515,0.002,3729.4,3728.7,3.9106811]
[1753437606516,2.68339794,3729.4,3728.7,3.9106811]
[1753437606714,0.002,3729.4,3728.8,5.4552]
[1753437606911,2.68341998,3729.4,3728.9,1.2288]
[1753437607120,2.68173469,3729.0,3728.8,4.671]
[1753437607312,0.53845906,3729.4,3727.9,6.438]
[1753437607562,2.68205429,3728.5,3727.9,6.438]
[1753437607717,0.03352644,3728.4,3727.5,0.7832]
[1753437607917,0.8619,3728.3,3727.4,0.4456]
[1753437608257,0.8619,3729.6,3727.7,2.6826193]
[1753437608462,0.002,3730.2,3728.0,3.55]
[1753437608628,0.002,3730.2,3728.2,3.0]
[1753437608949,1.3127,3729.9,3728.3,8.58096628]
[1753437609126,1.3127,3729.9,3728.4,1.2288]
[1753437609328,0.002,3730.2,3728.6,0.55]
[1753437609536,0.002,3730.2,3728.7,1.2288]
[1753437609740,0.002,3730.2,3729.6,2.68123983]
[1753437609919,0.002,3730.2,3729.7,1.2288]
[1753437610451,0.002,3730.2,3729.4,2.68136838]
[1753437610651,0.002,3730.2,3729.3,1.2288]
[1753437610854,0.8639,3730.2,3729.4,2.68139171]
[1753437611151,0.8639,3730.2,3729.1,4.668]
[1753437611318,1.2891,3729.9,3729.0,0.7832]
[1753437611522,0.93639,3730.0,3729.0,0.7832]
[1753437611523,0.5,3730.0,3729.1,0.47241612]
[1753437611739,0.5,3730.0,3729.2,0.7832]
[1753437612179,0.5,3730.0,3729.3,2.6814509]
[1753437612763,3.36008566,3730.0,3729.1,2.68159314]
[1753437612927,3.36008566,3730.0,3729.2,1.2288]
[1753437612928,0.5,3730.0,3729.2,1.2288]
[1753437613132,0.5,3730.0,3729.9,2.68103702]
[1753437613331,0.5,3730.0,3729.9,3.90983702]
[1753437613966,0.5,3730.0,3729.9,3.93664739]
[1753437614167,0.004,3730.6,3730.5,2.68060581]
[1753437614341,0.004,3730.6,3730.5,7.92341186]
[1753437614543,0.004,3730.6,3730.5,7.89660581]
[1753437614747,0.004,3730.6,3730.5,9.12440581]
[1753437614956,0.004,3730.6,3730.5,10.30491644]
[1753437615468,0.004,3730.6,3730.5,10.43931644]
[1753437616054,0.004,3730.6,3730.5,9.88931644]
[1753437616367,0.004,3730.6,3730.5,9.88831644]
[1753437616556,0.004,3730.6,3730.5,5.22431644]
[1753437616869,0.004,3730.6,3730.5,9.88731644]
[1753437617083,0.004,3730.6,3730.5,10.43731644]
[1753437617231,1.3503,3732.4,3730.8,3.23039026]
[1753437617438,2.67950997,3732.1,3730.8,9.60761433]
[1753437617639,2.67965117,3731.9,3730.8,5.62341433]
[1753437617855,0.8619,3732.1,3730.8,4.04359026]
[1753437618056,2.67961386,3731.9,3730.8,8.73239416]
[1753437618336,3.0,3731.9,3730.8,8.70559026]
[1753437618535,2.67960819,3731.9,3730.8,4.04359026]
[1753437618733,0.01226959,3733.5,3733.0,2.6788106]
[1753437619039,0.01226959,3733.5,3733.0,8.0501987]
[1753437619256,0.01226959,3733.5,3733.0,9.2522106]
[1753437619572,0.01226959,3733.5,3733.4,3.22852359]
[1753437619787,0.01226959,3733.5,3733.4,3.38890882]
[1753437620093,0.01226959,3733.5,3733.4,8.75275604]
[1753437620273,4.25558651,3733.9,3733.8,3.22823664]
[1753437620470,4.25558651,3733.9,3733.8,9.11703664]
[1753437620791,4.25558651,3733.9,3733.8,1.2288]
[1753437620989,4.25558651,3733.9,3733.8,4.7936]
[1753437621188,4.25558651,3733.9,3733.8,0.1336]
[1753437621354,5.54304516,3733.9,3733.8,0.1336]
[1753437621550,3.0,3733.8,3732.4,7.6648]
[1753437621793,2.6785875,3733.4,3732.5,4.66]
[1753437622082,2.67853729,3733.4,3733.3,0.1336]
[1753437622283,3.54043729,3733.4,3732.5,4.66]
[1753437622588,2.67853729,3733.4,3733.3,0.1336]
[1753437622793,4.09061857,3733.4,3733.3,0.1336]
[1753437622948,4.09061857,3733.4,3731.0,3.0]
[1753437622949,3.0,3733.2,3731.9,4.658]
[1753437623154,3.0,3732.9,3732.1,2.67939513]
[1753437623351,0.55018128,3733.4,3732.2,0.02679384]
[1753437623557,1.398,3733.5,3733.3,0.1336]
[1753437623558,4.398,3733.5,3733.3,0.1336]
[1753437624186,1.398,3733.5,3733.3,0.1336]
[1753437624887,3.0,3733.8,3733.3,0.1336]
[1753437625258,1.3321,3733.7,3733.0,4.657]
[1753437625469,4.01041017,3733.7,3732.9,4.657]
[1753437625668,2.67845185,3733.5,3733.4,0.1336]
[1753437625879,0.70105519,3733.5,3733.4,0.1336]
[1753437626067,0.8619,3733.6,3733.4,0.1336]
[1753437626393,3.0,3733.8,3733.4,0.1336]
[1753437626769,3.0,3733.8,3733.7,0.1336]
[1753437626967,3.8619,3733.8,3733.7,0.1336]
[1753437627160,7.01033664,3733.8,3733.0,4.656]
[1753437627392,5.67830838,3733.7,3733.6,0.1336]
[1753437627593,7.01040838,3733.7,3733.6,0.1336]
[1753437628560,3.0,3733.6,3731.8,0.4456]
[1753437628908,6.434,3734.8,3731.7,2.67970918]
[1753437628909,2.67916648,3732.6,3731.7,2.67970918]
[1753437629072,2.67916648,3732.6,3732.5,0.1336]
[1753437629073,2.67909767,3732.6,3732.5,0.1336]
[1753437629277,2.67916945,3732.5,3732.1,0.1336]
[1753437629485,0.73810977,3732.5,3730.7,0.7832]
[1753437629790,2.6794566,3732.1,3732.0,0.1336]
[1753437629986,4.0115566,3732.1,3732.0,0.1336]
[1753437630611,0.1336,3732.5,3732.0,0.1336]
[1753437630756,1.3432,3733.2,3732.2,2.67938481]
[1753437630959,6.93379461,3733.9,3733.7,2.67830838]
[1753437630960,4.25558651,3733.9,3733.7,2.67830838]
[1753437631180,4.25558651,3733.9,3733.8,8.69463664]
[1753437631461,4.25558651,3733.9,3733.8,9.41713415]
[1753437631771,4.25558651,3733.9,3733.8,9.28353415]
[1753437632185,4.25558651,3733.9,3733.8,9.48338537]
[1753437632702,4.25558651,3733.9,3733.8,2.67823664]
[1753437633199,5.11748651,3733.9,3733.6,4.654]
[1753437633400,1.3321,3733.8,3732.6,1.2288]
[1753437633608,2.67851423,3733.5,3732.7,7.3330069]
[1753437633791,2.67851423,3733.5,3732.8,4.654]
[1753437633957,1.3321,3733.8,3732.6,1.2288]
[1753437634163,0.8619,3733.8,3732.8,2.67889464]
[1753437634380,2.6783994,3733.6,3732.8,3.5349641]
[1753437634662,2.67847526,3733.5,3732.8,3.5349641]
[1753437634994,2.67831657,3733.7,3732.8,0.85606946]
[1753437635194,2.67831657,3733.7,3732.6,1.2288]
[1753437635195,2.67830838,3733.7,3732.6,1.2288]
[1753437635364,2.6785176,3733.5,3732.7,2.6790259]
[1753437635565,3.54013905,3733.8,3733.1,2.67872659]
[1753437635795,2.67832768,3733.7,3732.8,4.652]
[1753437635961,2.6784143,3733.6,3732.6,3.90789765]
[1753437636166,0.8619,3733.8,3732.9,2.67887355]
[1753437636579,3.54019514,3733.8,3733.0,7.33079275]
[1753437636871,0.8619,3733.8,3733.0,4.652]
[1753437637204,2.67850123,3733.5,3733.0,4.652]
[1753437637499,3.45287767,3733.4,3732.7,2.67901155]
[1753437637666,3.45287767,3733.4,3732.8,7.32992322]
[1753437637667,0.7743,3733.4,3732.8,7.32992322]
[1753437637862,0.63923865,3733.8,3732.4,0.4553]
[1753437638083,2.67823836,3733.8,3732.6,0.8116]
[1753437638298,2.67823836,3733.8,3732.7,0.59446917]
[1753437638518,2.67838341,3733.6,3732.7,1.04976917]
[1753437638713,0.7743,3733.5,3732.7,0.59446917]
[1753437638917,0.7743,3733.5,3732.3,0.20301712]
[1753437638918,2.678885,3732.9,3732.3,0.20301712]
[1753437639084,2.67907388,3732.7,3732.4,4.651]
[1753437639412,2.67864545,3733.3,3732.5,5.9179]
[1753437639615,2.67868207,3733.2,3732.6,5.26259341]
[1753437639814,5.67828515,3733.8,3732.6,5.26259341]
[1753437639815,0.7743,3733.6,3732.6,0.61159341]
[1753437639996,2.67845185,3733.5,3732.7,4.65]
[1753437640198,2.67895413,3732.8,3732.7,4.65]
[1753437640516,2.67886442,3733.0,3732.7,4.65]
[1753437640695,0.7743,3733.6,3732.7,5.4616]
[1753437641210,0.7743,3733.6,3732.5,0.4553]
[1753437641211,2.67904589,3732.7,3732.5,0.4553]
[1753437641405,2.67896736,3732.8,3732.6,4.65]
[1753437641607,2.67896736,3732.8,3732.6,4.7836]
[1753437641820,2.6790259,3732.7,3732.6,0.1336]
[1753437642239,2.6790259,3732.7,3732.6,4.7836]
[1753437643005,2.6790259,3732.7,3732.6,4.7826]
[1753437643210,0.1336,3733.4,3732.6,5.26086]
[1753437643409,2.67879298,3733.1,3732.6,6.52776]
[1753437643612,2.67868639,3733.2,3732.7,1.2669]
[1753437643814,0.24941793,3733.5,3733.0,0.1336]
[1753437644018,0.330047,3733.9,3733.0,0.1336]
[1753437644324,0.34829546,3733.8,3732.8,0.4553]
[1753437644523,2.67859534,3733.3,3732.8,0.4553]
[1753437644774,2.8746608,3733.9,3733.6,0.1336]
[1753437644915,2.8746608,3733.9,3732.9,1.2669]
[1753437644916,0.196447,3733.9,3733.5,4.649]
[1753437645225,2.67838011,3733.6,3733.5,4.649]
[1753437645521,2.67886243,3733.0,3732.7,0.4553]
[1753437645724,2.67837864,3733.7,3732.9,0.1336]
[1753437645928,0.196447,3733.9,3733.0,4.648]
[1753437646119,0.196447,3733.9,3733.6,0.1336]
[1753437646323,2.67830838,3733.7,3733.6,0.1336]
[1753437647292,1.35780838,3733.7,3733.6,1.1934]
[1753437647506,0.1336,3734.2,3733.6,1.1934]
[1753437647507,6.7491,3735.1,3733.7,0.58414]
[1753437647718,2.67786882,3734.4,3733.8,4.647]
[1753437647928,2.67786882,3734.4,3733.6,8.7577]
[1753437647929,2.67794976,3734.2,3733.9,4.647]
[1753437648131,2.67774562,3734.5,3733.9,4.647]
[1753437648330,2.67774562,3734.5,3733.9,5.4586]
[1753437648534,2.67774905,3734.5,3734.0,0.8116]
[1753437648699,2.67776464,3734.5,3734.0,1.2669]
[1753437649037,2.67782018,3734.4,3733.9,1.34047]
[1753437649220,2.67794976,3734.2,3733.6,1.0598]
[1753437649420,0.26799498,3734.2,3733.1,7.4908]